fUSD/lending_fUSD_20240714
["ID","MTS","AMOUNT","RATE_DAILY","PERIOD"]
[332055120,1720944658525,-1215.41,0.00013808,2]
[332055121,1720944658535,-500.0,0.00013808,2]
[332055122,1720944658545,-866.27,0.00013808,2]
[332055123,1720944658554,-500.0,0.00013808,2]
[332055124,1720944658564,-778.19,0.00013808,2]
[332055125,1720944658573,-341.37,0.00013808,2]
[332055126,1720944658583,-500.0,0.00013808,2]
[332055127,1720944658592,-500.0,0.00013808,2]
[332055128,1720944658602,-592.86,0.00013808,2]
[332055129,1720944658611,-563.84,0.00013808,2]
[332055130,1720944658620,-500.0,0.00013808,2]
[332055131,1720944658630,-500.0,0.00013808,2]
[332055132,1720944658639,-500.0,0.00013808,2]
[332055133,1720944658648,-606.65,0.00013808,2]
[332055134,1720944658657,-500.0,0.00013808,2]
[332055135,1720944658667,-500.0,0.00013808,2]
[332055136,1720944658676,-500.0,0.00013808,2]
[332055137,1720944658685,-500.0,0.00013808,2]
[332055138,1720944658695,-500.0,0.00013808,2]
[332055139,1720944658704,-500.0,0.00013808,2]
[332055140,1720944658714,-721.1,0.00013808,2]
[332055141,1720944658723,-263.50082761,0.00013808,2]
[332055142,1720944658733,-1149.18,0.00013808,2]
[332055143,1720944658743,-548.73,0.00013808,2]
[332055144,1720944658755,-500.0,0.00013808,2]
[332055145,1720944658765,-500.0,0.00013808,2]
[332055146,1720944658775,-500.0,0.00013808,2]
[332055147,1720944658784,-500.0,0.00013808,2]
[332055148,1720944658795,-500.0,0.00013808,2]
[332055149,1720944658805,-500.0,0.00013808,2]
[332055150,1720944658815,-500.0,0.00013808,2]
[332055151,1720944658825,-500.0,0.00013808,2]
[332055152,1720944658836,-558.59,0.00013808,2]
[332055153,1720944658846,-500.0,0.00013808,2]
[332055154,1720944658855,-500.0,0.00013808,2]
[332055155,1720944658865,-558.47,0.00013808,2]
[332055156,1720944658874,-1015.08,0.00013808,2]
[332055157,1720944658884,-500.0,0.00013808,2]
[332055158,1720944658893,-500.0,0.00013808,2]
[332055159,1720944658903,-500.0,0.00013808,2]
[332055160,1720944658912,-500.0,0.00013808,2]
[332055161,1720944658922,-500.0,0.00013808,2]
[332055162,1720944658933,-500.0,0.00013808,2]
[332055163,1720944658943,-500.0,0.00013808,2]
[332055164,1720944658953,-858.95,0.00013808,2]
[332055165,1720944658962,-500.0,0.00013808,2]
[332055166,1720944658971,-500.0,0.00013808,2]
[332055167,1720944658981,-500.0,0.00013808,2]
[332055168,1720944658991,-500.0,0.00013808,2]
[332055169,1720944659002,-833.29,0.00013808,2]
[332055170,1720944659011,-500.0,0.00013808,2]
[332055171,1720944659020,-547.08,0.00013808,2]
[332055172,1720944659030,-500.0,0.00013808,2]
[332055173,1720944659039,-849.93,0.00013808,2]
[332055174,1720944659050,-500.0,0.00013808,2]
[332055175,1720944659059,-500.0,0.00013808,2]
[332055176,1720944659068,-849.44,0.00013808,2]
[332055177,1720944659077,-500.0,0.00013808,2]
[332055178,1720944659087,-753.53,0.00013808,2]
[332055179,1720944659096,-500.0,0.00013808,2]
[332055180,1720944659106,-500.0,0.00013808,2]
[332055181,1720944659115,-599.13,0.00013808,2]
[332055182,1720944659124,-500.0,0.00013808,2]
[332055183,1720944659133,-512.46,0.00013808,2]
[332055184,1720944659143,-500.0,0.00013808,2]
[332055185,1720944659152,-1750.97,0.00013808,2]
[332055186,1720944659161,-500.0,0.00013808,2]
[332055187,1720944659171,-500.0,0.00013808,2]
[332055188,1720944659180,-500.0,0.00013808,2]
[332055189,1720944659189,-500.0,0.00013808,2]
[332055190,1720944659198,-500.0,0.00013808,2]
[332055191,1720944659208,-589.36,0.00013808,2]
[332055192,1720944659217,-1402.09,0.00013808,2]
[332055193,1720944659227,-500.0,0.00013808,2]
[332055194,1720944659236,-554.39,0.00013808,2]
[332055195,1720944659245,-500.0,0.00013808,2]
[332055196,1720944659254,-511.06,0.00013808,2]
[332055197,1720944659264,-772.12,0.00013808,2]
[332055198,1720944659273,-500.0,0.00013808,2]
[332055199,1720944659282,-500.0,0.00013808,2]
[332055200,1720944659291,-1184.16,0.00013808,2]
[332055201,1720944659301,-809.04,0.00013808,2]
[332055202,1720944659310,-500.0,0.00013808,2]
[332055203,1720944659319,-500.0,0.00013808,2]
[332055204,1720944659328,-500.0,0.00013808,2]
[332055205,1720944659337,-1032.46,0.00013808,2]
[332055206,1720944659347,-500.0,0.00013808,2]
[332055207,1720944659356,-667.84,0.00013808,2]
[332055208,1720944659365,-500.0,0.00013808,2]
[332055209,1720944659374,-694.11,0.00013808,2]
[332055210,1720944659383,-500.0,0.00013808,2]
[332055211,1720944659392,-500.0,0.00013808,2]
[332055212,1720944659401,-1121.88,0.00013808,2]
[332055213,1720944659411,-500.0,0.00013808,2]
[332055214,1720944659420,-813.31,0.00013808,2]
[332055215,1720944659430,-1014.42,0.00013808,2]
[332055216,1720944659439,-500.0,0.00013808,2]
[332055217,1720944659448,-214.5,0.00013808,2]
[332055218,1720944659457,-786.42,0.00013808,2]
[332055219,1720944659467,-800.09,0.00013808,2]
[332055220,1720944659476,-1093.3,0.00013808,2]
[332055221,1720944659485,-599.67,0.00013808,2]
[332055222,1720944659494,-538.90213404,0.00013808,2]
[332055223,1720944659503,-500.0,0.00013808,2]
[332055224,1720944659513,-500.0,0.00013808,2]
[332055225,1720944659522,-500.0,0.00013808,2]
[332055226,1720944659531,-500.0,0.00013808,2]
[332055227,1720944659540,-500.0,0.00013808,2]
[332055228,1720944659550,-530.99,0.00013808,2]
[332055229,1720944659560,-1387.36,0.00013808,2]
[332055230,1720944659569,-649.3,0.00013808,2]
[332055231,1720944659578,-657.73,0.00013808,2]
[332055232,1720944659588,-500.0,0.00013808,2]
[332055233,1720944659597,-1492.04,0.00013808,2]
[332055234,1720944659606,-500.0,0.00013808,2]
[332055235,1720944659616,-500.0,0.00013808,2]
[332055236,1720944659625,-500.0,0.00013808,2]
[332055237,1720944659634,-500.0,0.00013808,2]
[332055238,1720944659643,-500.0,0.00013808,2]
[332055239,1720944659654,-500.0,0.00013808,2]
[332055240,1720944659664,-1701.49,0.00013808,2]
[332055241,1720944659676,-500.0,0.00013808,2]
[332055242,1720944659686,-500.0,0.00013808,2]
[332055243,1720944659695,-1541.23,0.00013808,2]
[332055244,1720944659706,-1346.98,0.00013808,2]
[332055245,1720944659715,-655.91,0.00013808,2]
[332055246,1720944659724,-712.03,0.00013808,2]
[332055247,1720944659733,-500.0,0.00013808,2]
[332055248,1720944659743,-500.0,0.00013808,2]
[332055249,1720944659754,-500.0,0.00013808,2]
[332055250,1720944659766,-538.67,0.00013808,2]
[332055251,1720944659775,-500.0,0.00013808,2]
[332055252,1720944659784,-500.0,0.00013808,2]
[332055253,1720944659795,-500.0,0.00013808,2]
[332055254,1720944659803,-500.0,0.00013808,2]
[332055255,1720944659813,-500.0,0.00013808,2]
[332055256,1720944659892,-294.87309036,0.00013808,2]
[332055257,1720944659901,-1062.54,0.00013808,2]
[332055258,1720944659910,-500.0,0.00013808,2]
[332055259,1720944659920,-903.04,0.00013808,2]
[332055260,1720944659929,-500.0,0.00013808,2]
[332055261,1720944659938,-500.0,0.00013808,2]
[332055262,1720944659947,-769.95,0.00013808,2]
[332055263,1720944659956,-500.0,0.00013808,2]
[332055264,1720944659965,-500.0,0.00013808,2]
[332055265,1720944659974,-500.0,0.00013808,2]
[332055266,1720944659983,-1866.33,0.00013808,2]
[332055267,1720944659992,-500.0,0.00013808,2]
[332055268,1720944660001,-1053.38,0.00013808,2]
[332055269,1720944660010,-568.17,0.00013808,2]
[332055270,1720944660020,-1330.01,0.00013808,2]
[332055271,1720944660029,-845.25,0.00013808,2]
[332055272,1720944660038,-500.0,0.00013808,2]
[332055273,1720944660048,-500.0,0.00013808,2]
[332055274,1720944660057,-500.0,0.00013808,2]
[332055275,1720944660067,-945.63,0.00013808,2]
[332055276,1720944660076,-500.0,0.00013808,2]
[332055277,1720944660085,-510.21,0.00013808,2]
[332055278,1720944660095,-633.73,0.00013808,2]
[332055279,1720944660104,-500.0,0.00013808,2]
[332055280,1720944660114,-500.0,0.00013808,2]
[332055281,1720944660123,-500.0,0.00013808,2]
[332055282,1720944660132,-719.5,0.00013808,2]
[332055283,1720944660141,-500.0,0.00013808,2]
[332055284,1720944660150,-1912.05,0.00013808,2]
[332055285,1720944660160,-688.9,0.00013808,2]
[332055286,1720944660169,-500.0,0.00013808,2]
[332055287,1720944660178,-500.0,0.00013808,2]
[332055288,1720944660187,-1174.26,0.00013808,2]
[332055289,1720944660196,-500.0,0.00013808,2]
[332055290,1720944660205,-500.0,0.00013808,2]
[332055291,1720944660215,-500.0,0.00013808,2]
[332055292,1720944660224,-500.0,0.00013808,2]
[332055293,1720944660233,-500.0,0.00013808,2]
[332055294,1720944660244,-1441.88,0.00013808,2]
[332055295,1720944660255,-500.0,0.00013808,2]
[332055296,1720944660265,-767.19,0.00013808,2]
[332055297,1720944660274,-500.0,0.00013808,2]
[332055298,1720944660283,-500.0,0.00013808,2]
[332055299,1720944660294,-500.0,0.00013808,2]
[332055300,1720944660304,-500.0,0.00013808,2]
[332055301,1720944660313,-500.0,0.00013808,2]
[332055302,1720944660322,-748.28,0.00013808,2]
[332055303,1720944660332,-500.0,0.00013808,2]
[332055304,1720944660341,-500.0,0.00013808,2]
[332055305,1720944660350,-266.55,0.00013808,2]
[332055306,1720944660359,-500.0,0.00013808,2]
[332055307,1720944660368,-500.0,0.00013808,2]
[332055308,1720944660377,-1008.47,0.00013808,2]
[332055309,1720944660388,-500.0,0.00013808,2]
[332055310,1720944660399,-500.0,0.00013808,2]
[332055311,1720944660410,-500.0,0.00013808,2]
[332055312,1720944660421,-500.0,0.00013808,2]
[332055313,1720944660431,-500.0,0.00013808,2]
[332055314,1720944660440,-1243.18,0.00013808,2]
[332055315,1720944660451,-530.35,0.00013808,2]
[332055316,1720944660462,-500.0,0.00013808,2]
[332055317,1720944660471,-500.0,0.00013808,2]
[332055318,1720944660481,-755.5,0.00013808,2]
[332055319,1720944660491,-500.0,0.00013808,2]
[332055320,1720944660501,-806.5,0.00013808,2]
[332055321,1720944660510,-1123.18,0.00013808,2]
[332055322,1720944660519,-600.75,0.00013808,2]
[332055323,1720944660528,-500.0,0.00013808,2]
[332055324,1720944660538,-500.0,0.00013808,2]
[332055325,1720944660547,-585.19,0.00013808,2]
[332055326,1720944660556,-500.0,0.00013808,2]
[332055327,1720944660566,-258.01109743,0.00013808,2]
[332055328,1720944660575,-704.83,0.00013808,2]
[332055329,1720944660585,-824.44,0.00013808,2]
[332055330,1720944660594,-500.0,0.00013808,2]
[332055331,1720944660603,-500.0,0.00013808,2]
[332055332,1720944660612,-1099.22,0.00013808,2]
[332055333,1720944660622,-500.0,0.00013808,2]
[332055334,1720944660631,-500.0,0.00013808,2]
[332055335,1720944660641,-500.0,0.00013808,2]
[332055336,1720944660651,-500.0,0.00013808,2]
[332055337,1720944660661,-233.42,0.00013808,2]
[332055338,1720944660672,-500.0,0.00013808,2]
[332055339,1720944660681,-500.0,0.00013808,2]
[332055340,1720944660691,-500.0,0.00013808,2]
[332055341,1720944660701,-826.96,0.00013808,2]
[332055342,1720944660710,-500.0,0.00013808,2]
[332055343,1720944660719,-500.0,0.00013808,2]
[332055344,1720944660728,-500.0,0.00013808,2]
[332055345,1720944660737,-41.02119733,0.00013808,2]
[332055346,1720944661303,-458.97880267,0.00013808,2]
[332055347,1720944661313,-500.0,0.00013808,2]
[332055348,1720944661322,-463.80273709,0.00013808,2]
[332055349,1720944661356,-436.97726291,0.00013808,2]
[332055350,1720944661365,-1387.45607676,0.00013808,2]
[332055351,1720944661377,-46.92392324,0.00013808,2]
[332055352,1720944661387,-911.12,0.00013808,2]
[332055353,1720944661396,-500.0,0.00013808,2]
[332055354,1720944661406,-500.0,0.00013808,2]
[332055355,1720944661418,-224.32171906,0.00013808,2]
[332055356,1720944661431,-275.67828094,0.00013808,2]
[332055357,1720944661441,-145.72094606,0.00013808,2]
[332055358,1720944661471,-264.54053448,0.00013808,2]
[332055359,1720944661483,-91.64851946,0.00013808,2]
[332055360,1720944661494,-661.38,0.00013808,2]
[332055361,1720944661504,-1069.2,0.00013808,2]
[332055362,1720944661513,-500.0,0.00013808,2]
[332055363,1720944661522,-500.0,0.00013808,2]
[332055364,1720944661532,-500.0,0.00013808,2]
[332055365,1720944661541,-500.0,0.00013808,2]
[332055366,1720944661551,-500.0,0.00013808,2]
[332055367,1720944661561,-1849.69,0.00013808,2]
[332055368,1720944661572,-1086.25,0.00013808,2]
[332055369,1720944661582,-728.76,0.00013808,2]
[332055370,1720944661592,-500.0,0.00013808,2]
[332055371,1720944661602,-500.0,0.00013808,2]
[332055372,1720944661612,-500.0,0.00013808,2]
[332055373,1720944661622,-889.43,0.00013808,2]
[332055374,1720944661633,-500.0,0.00013808,2]
[332055375,1720944661643,-689.26,0.00013808,2]
[332055376,1720944661653,-500.0,0.00013808,2]
[332055377,1720944661663,-500.0,0.00013808,2]
[332055378,1720944661672,-547.77,0.00013808,2]
[332055379,1720944661682,-500.0,0.00013808,2]
[332055380,1720944661693,-849.09,0.00013808,2]
[332055381,1720944661703,-500.0,0.00013808,2]
[332055382,1720944661713,-500.0,0.00013808,2]
[332055383,1720944661724,-500.0,0.00013808,2]
[332055384,1720944661733,-500.0,0.00013808,2]
[332055385,1720944661742,-500.0,0.00013808,2]
[332055386,1720944661756,-500.0,0.00013808,2]
[332055387,1720944661766,-500.0,0.00013808,2]
[332055388,1720944661777,-1481.68,0.00013808,2]
[332055389,1720944661787,-500.0,0.00013808,2]
[332055390,1720944661799,-500.0,0.00013808,2]
[332055391,1720944661808,-225.07291014,0.00013808,2]
[332055392,1720944661818,-500.0,0.00013808,2]
[332055393,1720944661828,-500.0,0.00013808,2]
[332055394,1720944661840,-1138.18,0.00013808,2]
[332055395,1720944661850,-651.49,0.00013808,2]
[332055396,1720944661860,-687.54,0.00013808,2]
[332055397,1720944661870,-986.52,0.00013808,2]
[332055398,1720944661879,-977.44,0.00013808,2]
[332055399,1720944661889,-500.0,0.00013808,2]
[332055400,1720944661899,-812.88291747,0.00013808,2]
[332055401,1720944661915,-337.28708253,0.00013808,2]
[332055402,1720944661926,-476.61306747,0.00013808,2]
[332055403,1720944661951,-637.66693253,0.00013808,2]
[332055404,1720944661961,-558.71,0.00013808,2]
[332055405,1720944661970,-832.08,0.00013808,2]
[332055406,1720944661981,-39.40386609,0.00013808,2]
[332055407,1720944662027,-460.59613391,0.00013808,2]
[332055408,1720944662037,-87.49986609,0.00013808,2]
[332055409,1720944662057,-370.15292464,0.00013808,2]
[332055410,1720944662078,-214.3590146,0.00013808,2]
[332055411,1720944662100,-251.60714365,0.00013808,2]
[332055412,1720944662111,-34.03384175,0.00013808,2]
[332055413,1720944662121,-500.0,0.00013808,2]
[332055414,1720944662131,-500.0,0.00013808,2]
[332055415,1720944662140,-500.0,0.00013808,2]
[332055416,1720944662150,-500.0,0.00013808,2]
[332055417,1720944662160,-500.0,0.00013808,2]
[332055418,1720944662170,-1440.63,0.00013808,2]
[332055419,1720944662180,-698.88,0.00013808,2]
[332055420,1720944662190,-236.29259246,0.00013808,2]
[332055421,1720944662202,-263.70740754,0.00013808,2]
[332055422,1720944662211,-192.4864303,0.00013808,2]
[332055423,1720944662223,-269.49698536,0.00013808,2]
[332055424,1720944662236,-38.01658434,0.00013808,2]
[332055425,1720944662246,-500.0,0.00013808,2]
[332055426,1720944662256,-500.0,0.00013808,2]
[332055427,1720944662265,-500.0,0.00013808,2]
[332055428,1720944662275,-500.0,0.00013808,2]
[332055429,1720944662284,-500.0,0.00013808,2]
[332055430,1720944662295,-500.0,0.00013808,2]
[332055431,1720944662305,-1816.1,0.00013808,2]
[332055432,1720944662315,-526.49,0.00013808,2]
[332055433,1720944662324,-500.0,0.00013808,2]
[332055434,1720944662334,-500.0,0.00013808,2]
[332055435,1720944662344,-1558.52,0.00013808,2]
[332055436,1720944662354,-500.0,0.00013808,2]
[332055437,1720944662364,-1030.23,0.00013808,2]
[332055438,1720944662376,-623.08,0.00013808,2]
[332055439,1720944662386,-500.0,0.00013808,2]
[332055440,1720944662397,-500.0,0.00013808,2]
[332055441,1720944662407,-500.0,0.00013808,2]
[332055442,1720944662416,-500.0,0.00013808,2]
[332055443,1720944662427,-1931.11,0.00013808,2]
[332055444,1720944662437,-500.0,0.00013808,2]
[332055445,1720944662447,-500.0,0.00013808,2]
[332055446,1720944662457,-500.0,0.00013808,2]
[332055447,1720944662467,-772.51,0.00013808,2]
[332055448,1720944662477,-528.55,0.00013808,2]
[332055449,1720944662488,-500.0,0.00013808,2]
[332055450,1720944662499,-723.02,0.00013808,2]
[332055451,1720944662509,-547.9,0.00013808,2]
[332055452,1720944662519,-1263.14,0.00013808,2]
[332055453,1720944662530,-500.0,0.00013808,2]
[332055454,1720944662539,-500.0,0.00013808,2]
[332055455,1720944662549,-500.0,0.00013808,2]
[332055456,1720944662560,-500.0,0.00013808,2]
[332055457,1720944662570,-515.44,0.00013808,2]
[332055458,1720944662579,-500.0,0.00013808,2]
[332055459,1720944662591,-537.71,0.00013808,2]
[332055460,1720944662601,-500.0,0.00013808,2]
[332055461,1720944662610,-1256.97,0.00013808,2]
[332055462,1720944662620,-500.0,0.00013808,2]
[332055463,1720944662629,-500.0,0.00013808,2]
[332055464,1720944662639,-500.0,0.00013808,2]
[332055465,1720944662649,-502.48,0.00013808,2]
[332055466,1720944662658,-500.0,0.00013808,2]
[332055467,1720944662667,-602.76,0.00013808,2]
[332055468,1720944662677,-765.47,0.00013808,2]
[332055469,1720944662688,-500.0,0.00013808,2]
[332055470,1720944662697,-1089.42,0.00013808,2]
[332055471,1720944662707,-500.0,0.00013808,2]
[332055472,1720944662716,-500.0,0.00013808,2]
[332055473,1720944662727,-702.42,0.00013808,2]
[332055474,1720944662737,-500.0,0.00013808,2]
[332055475,1720944662747,-500.0,0.00013808,2]
[332055476,1720944662761,-500.0,0.00013808,2]
[332055477,1720944662770,-1029.37,0.00013808,2]
[332055478,1720944662781,-500.0,0.00013808,2]
[332055479,1720944662791,-500.0,0.00013808,2]
[332055480,1720944662803,-1188.58,0.00013808,2]
[332055481,1720944662813,-500.0,0.00013808,2]
[332055482,1720944662822,-878.86,0.00013808,2]
[332055483,1720944662835,-1040.9,0.00013808,2]
[332055484,1720944662845,-500.0,0.00013808,2]
[332055485,1720944662854,-500.0,0.00013808,2]
[332055486,1720944662864,-500.0,0.00013808,2]
[332055487,1720944662874,-500.0,0.00013808,2]
[332055488,1720944662883,-1332.58,0.00013808,2]
[332055489,1720944662894,-500.0,0.00013808,2]
[332055490,1720944662903,-500.0,0.00013808,2]
[332055491,1720944662913,-644.11,0.00013808,2]
[332055492,1720944662923,-695.94,0.00013808,2]
[332055493,1720944662932,-500.0,0.00013808,2]
[332055494,1720944662942,-757.44,0.00013808,2]
[332055495,1720944662952,-1082.22,0.00013808,2]
[332055496,1720944662963,-748.29,0.00013808,2]
[332055497,1720944662973,-766.6,0.00013808,2]
[332055498,1720944662983,-1194.25,0.00013808,2]
[332055499,1720944662993,-739.05,0.00013808,2]
[332055500,1720944663003,-500.0,0.00013808,2]
[332055501,1720944663013,-828.75,0.00013808,2]
[332055502,1720944663023,-500.0,0.00013808,2]
[332055503,1720944663033,-500.0,0.00013808,2]
[332055504,1720944663043,-500.0,0.00013808,2]
[332055505,1720944663055,-831.45,0.00013808,2]
[332055506,1720944663065,-500.0,0.00013808,2]
[332055507,1720944663075,-500.0,0.00013808,2]
[332055508,1720944663085,-500.0,0.00013808,2]
[332055509,1720944663095,-849.09,0.00013808,2]
[332055510,1720944663104,-543.18,0.00013808,2]
[332055511,1720944663114,-816.29,0.00013808,2]
[332055512,1720944663124,-500.0,0.00013808,2]
[332055513,1720944663134,-500.0,0.00013808,2]
[332055514,1720944663144,-500.0,0.00013808,2]
[332055515,1720944663153,-500.0,0.00013808,2]
[332055516,1720944663163,-1015.12,0.00013808,2]
[332055517,1720944663173,-1008.51,0.00013808,2]
[332055518,1720944663183,-596.08,0.00013808,2]
[332055519,1720944663193,-500.0,0.00013808,2]
[332055520,1720944663203,-500.0,0.00013808,2]
[332055521,1720944663414,-984.1,0.00013808,2]
[332055522,1720944663424,-500.0,0.00013808,2]
[332055523,1720944663433,-862.18,0.00013808,2]
[332055524,1720944663443,-785.47,0.00013808,2]
[332055525,1720944663452,-500.0,0.00013808,2]
[332055526,1720944663462,-500.0,0.00013808,2]
[332055527,1720944663471,-981.46,0.00013808,2]
[332055528,1720944663481,-500.0,0.00013808,2]
[332055529,1720944663490,-190.03,0.00013808,2]
[332055530,1720944663500,-1104.22,0.00013808,2]
[332055531,1720944663510,-500.0,0.00013808,2]
[332055532,1720944663519,-703.61,0.00013808,2]
[332055533,1720944663529,-1735.14,0.00013808,2]
[332055534,1720944663548,-500.0,0.00013808,2]
[332055535,1720944663559,-634.42,0.00013808,2]
[332055536,1720944663569,-500.0,0.00013808,2]
[332055537,1720944663579,-704.83,0.00013808,2]
[332055538,1720944663590,-500.0,0.00013808,2]
[332055539,1720944663601,-500.0,0.00013808,2]
[332055540,1720944663610,-688.54,0.00013808,2]
[332055541,1720944663619,-730.8,0.00013808,2]
[332055542,1720944663628,-699.49,0.00013808,2]
[332055543,1720944663638,-500.0,0.00013808,2]
[332055544,1720944663647,-1161.87,0.00013808,2]
[332055545,1720944663657,-500.0,0.00013808,2]
[332055546,1720944663666,-500.0,0.00013808,2]
[332055547,1720944663676,-981.53,0.00013808,2]
[332055548,1720944663685,-507.10808812,0.00013808,2]
[332055549,1720944663694,-500.0,0.00013808,2]
[332055550,1720944663703,-542.72,0.00013808,2]
[332055551,1720944663712,-814.22,0.00013808,2]
[332055552,1720944663722,-733.24,0.00013808,2]
[332055553,1720944663731,-900.42,0.00013808,2]
[332055554,1720944663740,-500.0,0.00013808,2]
[332055555,1720944663751,-500.0,0.00013808,2]
[332055556,1720944663764,-1126.21,0.00013808,2]
[332055557,1720944663774,-500.0,0.00013808,2]
[332055558,1720944663783,-304.14178783,0.00013808,2]
[332055559,1720944663802,-195.85821217,0.00013808,2]
[332055560,1720944663811,-462.72,0.00013808,2]
[332055561,1720944663820,-500.0,0.00013808,2]
[332055562,1720944663830,-105.85736776,0.00013808,2]
[332055563,1720944664294,-500.0,0.00013698,2]
[332055564,1720944664308,-500.0,0.00013698,2]
[332055565,1720944664318,-500.0,0.00013753,2]
[332055566,1720944664330,-500.0,0.00013753,2]
[332055567,1720944664346,-560.13263224,0.00013808,2]
[332055568,1720944664364,-557.57,0.00013808,2]
[332055569,1720944664374,-546.39,0.00013808,2]
[332055570,1720944664384,-500.0,0.00013808,2]
[332055571,1720944664394,-697.26,0.00013808,2]
[332055572,1720944664404,-686.52,0.00013808,2]
[332055573,1720944664413,-697.79,0.00013808,2]
[332055574,1720944664422,-735.3,0.00013808,2]
[332055575,1720944664432,-500.0,0.00013808,2]
[332055576,1720944664441,-500.0,0.00013808,2]
[332055577,1720944664451,-500.0,0.00013808,2]
[332055578,1720944664460,-500.0,0.00013808,2]
[332055579,1720944664471,-1039.36,0.00013808,2]
[332055580,1720944664480,-1038.98,0.00013808,2]
[332055581,1720944664490,-500.0,0.00013808,2]
[332055582,1720944664499,-588.86,0.00013808,2]
[332055583,1720944664509,-500.0,0.00013808,2]
[332055584,1720944664518,-749.01,0.00013808,2]
[332055585,1720944664528,-1568.94,0.00013808,2]
[332055586,1720944664537,-826.74,0.00013808,2]
[332055587,1720944664548,-966.66,0.00013808,2]
[332055588,1720944664558,-500.0,0.00013808,2]
[332055589,1720944664568,-716.2,0.00013808,2]
[332055590,1720944664577,-1331.68,0.00013808,2]
[332055591,1720944664586,-1142.0,0.00013808,2]
[332055592,1720944664596,-857.39,0.00013808,2]
[332055593,1720944664605,-500.0,0.00013808,2]
[332055594,1720944664614,-691.76,0.00013808,2]
[332055595,1720944664624,-500.0,0.00013808,2]
[332055596,1720944664633,-1459.14,0.00013808,2]
[332055597,1720944664643,-1026.42,0.00013808,2]
[332055598,1720944664652,-1139.81,0.00013808,2]
[332055599,1720944664661,-634.68,0.00013808,2]
[332055600,1720944664670,-500.0,0.00013808,2]
[332055601,1720944664679,-767.6,0.00013808,2]
[332055602,1720944664689,-500.0,0.00013808,2]
[332055603,1720944664699,-500.0,0.00013808,2]
[332055604,1720944664709,-830.17,0.00013808,2]
[332055605,1720944664718,-624.62,0.00013808,2]
[332055606,1720944664727,-573.8,0.00013808,2]
[332055607,1720944664736,-500.0,0.00013808,2]
[332055608,1720944664745,-500.0,0.00013808,2]
[332055609,1720944664757,-1206.4,0.00013808,2]
[332055610,1720944664766,-489.92,0.00013808,2]
[332055611,1720944664775,-500.0,0.00013808,2]
[332055612,1720944664784,-669.03,0.00013808,2]
[332055613,1720944664795,-500.0,0.00013808,2]
[332055614,1720944664805,-500.0,0.00013808,2]
[332055615,1720944664814,-573.27,0.00013808,2]
[332055616,1720944664823,-500.0,0.00013808,2]
[332055617,1720944664835,-1222.83,0.00013808,2]
[332055618,1720944664845,-872.95,0.00013808,2]
[332055619,1720944664854,-500.0,0.00013808,2]